[Event "Svetozar Gligoric Masters 2022"]
[Site "Belgrade"]
[Date "2022.07.18"]
[Round "2.20"]
[White "Chelushkina, Irina"]
[Black "Spasic, Petar"]
[Result "0-1"]
[ECO "A49"]
[WhiteElo "2196"]
[BlackElo "2336"]
[Annotator "TA"]
[PlyCount "64"]
[EventDate "2022.07.18"]
[EventCountry "SRB"]
[SourceTitle "playchess.com"]
[Source "ChessBase"]
[SourceQuality "1"]
[TimeControl "40/5400+30:900+30"]

{[%evp 12,64,-13,-21,-17,-25,-32,-38,-20,-18,-7,-13,-8,3,2,-58,-34,-38,-21,-47,-46,-105,-121,-118,-118,-104,-121,-130,-111,-160,-164,-193,-141,-145,-141,-146,-121,-121,-114,-166,-120,-577,-595,-595,-591,-573,-551,-601,-352,-346,-343,-337,-339,-372,-355]} 1. g3 d5 2. Nf3 g6 3. Bg2 Bg7 4. d4 Nf6 5. O-O O-O 6. a4 c5 7. c3 cxd4 {A49: 1 d4 Nf6 2 Nf3 g6 3 g3: Anti-King's Indian systems.} 8. Nxd4 {[%cal Bf3d4,Bd4b3,Bb3c5,Bc5d3][%mdl 32] [#]} e5 $146 ({Predecessor:} 8... h6 9. Na3 e5 10. Nb3 Nc6 11. Be3 Re8 12. a5 Bf5 13. Nb5 Ne4 14. Nc5 Rb8 15. Nxe4 Bxe4 16. Bxe4 dxe4 17. Nxa7 {1-0 (43) Chelushkina,I (2415)-Glaser,A (2011) Halle 2000}) 9. Nb3 Qc7 {Black is slightly better.} 10. Na3 a6 11. Bg5 ({Much weaker is} 11. Bxd5 Nxd5 12. Qxd5 Be6 $15) 11... Ne4 12. Be3 Be6 13. f3 ({White should play} 13. Bxe4 $11 dxe4 14. Nc5) 13... Nf6 $1 $15 14. Nc5 Bc8 15. Nd3 {[%cal Oa4a5]} Nc6 16. b4 (16. Bf2 $15) 16... d4 $36 {[%mdl 2048] Black is in control.} 17. cxd4 Nd5 18. Bd2 {[#] Black must now prevent e4.} exd4 19. b5 axb5 20. axb5 (20. Nxb5 $142 Qe7 21. Re1) 20... Nce7 {[%cal Bc6e7,Be7f5,Bf5e3,Be3c4,Bc4b2,Bb2d3,Bd3c1][%mdl 32]} 21. Kh1 Nf5 {Strongly threatening ...Nfe3.} 22. Rc1 Qd7 {Black is much more active.} 23. Qb3 Nfe3 {[#] ...Qe7 is the strong threat.} 24. Rfe1 Qe7 ({Inferior is} 24... Nxg2 25. Kxg2 Re8 26. Nc4) 25. Nc2 (25. Bxe3 $17 Nxe3 26. Nc2) 25... Be6 ({Better is} 25... Nxg2 $19 26. Kxg2 Be6) 26. Qb2 $2 {[%mdl 8192] This costs White the game.} (26. Bb4 $17 {is tougher.} Nxb4 27. Qxb4 Qxb4 28. Ndxb4) 26... Nc4 $19 {[%csl LRb2,LRd2]} 27. Bb4 Nxb2 28. Bxe7 Nxd3 ({Stronger than} 28... Nxe7 29. Nxb2 Ra5 30. f4 $17) 29. Bxf8 Nxc1 {Pair of Knights!} 30. Bxg7 Kxg7 31. Nxd4 Rc8 32. e4 Nb4 {Weighted Error Value: White=0.43/Black=0.21 (precise)} 0-1

[Event "Svetozar Gligoric Masters 2022"]
[Site "Belgrade"]
[Date "2022.07.18"]
[Round "2.21"]
[White "Rohith Krishna S"]
[Black "Lever, Erwan"]
[Result "1-0"]
[ECO "E35"]
[WhiteElo "2326"]
[BlackElo "2178"]
[Annotator "TA"]
[PlyCount "71"]
[EventDate "2022.07.18"]
[EventCountry "SRB"]
[SourceTitle "playchess.com"]
[Source "ChessBase"]
[SourceQuality "1"]
[TimeControl "40/5400+30:900+30"]

{[%evp 9,71,29,30,-4,-4,0,0,0,0,0,0,-10,-19,-6,0,0,0,0,0,0,51,52,47,31,74,1,14,0,8,8,18,5,18,18,13,-57,0,0,0,-516,-25,-25,-25,-25,-25,-25,0,-25,110,83,284,282,389,0,780,745,749,171,143,139,1821,1732,3277,2323]} 1. d4 Nf6 2. c4 e6 3. Nc3 Bb4 4. Qc2 d5 5. cxd5 exd5 6. e3 {E35: Nimzo-Indian: Classical: 4...d5 5 cxd5 exd5.} O-O 7. Bd3 a6 8. Nge2 {The position is equal.} Re8 9. a3 Bd6 {[#]} 10. Bd2 $146 ({Predecessor:} 10. O-O b6 11. b4 Nbd7 12. Nf4 Bxf4 13. exf4 c5 14. dxc5 bxc5 15. Rd1 Bb7 16. Na4 {1-0 (52) So,W (2776)-Mamedyarov,S (2759) Bucharest 2022}) 10... Nbd7 11. b4 {Against c5} c6 12. f3 a5 13. Rb1 axb4 14. axb4 g6 (14... Nf8 $11) 15. O-O $1 $14 Nh5 16. e4 Bb8 17. exd5 (17. Rf2 $16) 17... cxd5 18. Nxd5 Nf8 19. Ndc3 Ne6 20. Be3 Nef4 21. Nxf4 Nxf4 22. Rbe1 {[#]} (22. Ne4 $11) 22... Be6 (22... Rxe3 $1 $15 23. Rxe3 Qxd4) 23. Bb5 $11 Qc7 24. Rc1 $2 {[%mdl 8192] [#]} (24. Bxe8 $2 Ne2+ 25. Nxe2 (25. Kf2 $2 Nxc3 26. Ra1 Qxh2 $17) 25... Qxc2 $19) (24. g3 $1 $11 {and White has nothing to worry.} Rc8 25. Bxf4 Qxc3 26. Qxc3 Rxc3 27. Be5) 24... Ne2+ $2 25. Nxe2 Qxh2+ 26. Kf2 {[%cal Bg1f2,Bf2e1,Be1d1,Bd1d2][%mdl 32] And now Rh1 would win.} Qh4+ {[%mdl 1024] Black has compensation.} 27. g3 {[%cal Bg2g3,Bg3g4][%mdl 32]} Qh2+ 28. Ke1 {[#]} Bf5 (28... Ra3 $1 $11 {remains equal.} 29. Bf2 (29. Bxe8 $2 Rxe3 30. Bxf7+ Kxf7 $19) 29... Rd8) 29. Qd2 Re7 (29... Bxg3+ $16 {was called for.} 30. Kd1 Be6) 30. g4 $18 Ra3 31. Bg5 (31. gxf5 Rexe3 32. d5 (32. Kd1 Qh3 $14) 32... Be5 $16) ({Better is} 31. Rc3 $18 Ra1+ 32. Nc1) 31... Bg3+ $2 {[%mdl 8192]} (31... Rxf3 $11 32. Bxe7 (32. Rxf3 {leads to mate.} Qg1+ 33. Rf1 Bg3+ 34. Kd1 Qxf1+) 32... Rxf1+ 33. Kxf1 Bg3) 32. Kd1 Be6 33. Bxe7 $2 (33. d5 Rd7 34. Rc8+ (34. dxe6 Rxd2+ 35. Bxd2 fxe6 $18) 34... Kg7 35. Bxd7 Bxd7 36. Qb2+ Be5 37. Qxa3 Bxc8 38. Qa8) 33... Bb3+ 34. Rc2 $1 Bf4 $2 {[%mdl 8192]} (34... Ra1+ $16 35. Qc1 (35. Nc1 Bf4 $14) 35... Qg2) 35. Qxf4 Ra1+ 36. Kd2 {What a bad dream for Black.  Weighted Error Value: White=0.63/Black=0.55} 1-0

[Event "Svetozar Gligoric Masters 2022"]
[Site "Belgrade"]
[Date "2022.07.18"]
[Round "2.22"]
[White "Granovskiy, Alexandr"]
[Black "Lu, Miaoyi"]
[Result "1/2-1/2"]
[ECO "E60"]
[WhiteElo "2177"]
[BlackElo "2322"]
[Annotator "TA"]
[PlyCount "66"]
[EventDate "2022.07.18"]
[EventCountry "SRB"]
[SourceTitle "playchess.com"]
[Source "ChessBase"]
[SourceQuality "1"]
[TimeControl "40/5400+30:900+30"]

{[%evp 9,66,22,25,28,39,39,37,50,60,45,51,58,45,33,41,35,78,53,58,58,74,33,69,40,68,-12,-9,-27,-27,-30,-31,-41,-25,-19,0,-52,-52,-52,-52,-52,-54,-70,-60,-62,-62,-66,-66,-69,-68,-68,-66,-70,-51,-69,1253,-69,0,0,0]} 1. c4 Nf6 2. d4 g6 3. h4 Bg7 4. Nc3 d5 5. h5 Nxh5 6. cxd5 {E60: King's Indian: Unusual lines and Fianchetto Variation without Nc3.} c6 7. e4 {aiming for e5.} Nf6 {[%cal Rc6d5]} 8. dxc6 {White is slightly better.} Nxc6 9. d5 Ne5 {[#]} 10. Bb5+ $146 ({Predecessor:} 10. Be2 h5 11. f4 Neg4 12. e5 Qb6 13. Nh3 Nd7 14. Qa4 Kf8 15. Qb5 a6 16. Qxb6 Nxb6 17. Nf2 g5 18. g3 Bf5 19. Nxg4 Bxg4 20. Be3 Bxe2 21. Kxe2 {½-½ (21) Richardt,M (1956)-Dickson,G (2071) England 2013}) 10... Kf8 11. Be2 h5 12. Bf4 Nfg4 13. Qd2 ({Much weaker is} 13. f3 Qb6 14. fxg4 hxg4 $11) 13... Qb6 14. Nh3 Bd7 15. O-O (15. f3 $5 {[%cal Rf3g4]}) 15... f6 16. d6 $1 {[#] dxe7+ is the strong threat.} Qxd6 17. Rad1 (17. Qxd6 $14 exd6 18. Rad1) 17... Qxd2 $11 18. Rxd2 g5 $36 {[%mdl 2048] Black is more active.} 19. Bxg4 {[%mdl 64] [#] Remove Defender} Bxg4 20. Bxe5 fxe5 21. f3 Be6 22. Nd5 (22. Nxg5 $11 Bc4 23. Rc1) 22... Bxh3 $15 23. gxh3 Rd8 {Threatens to win with ...e6.} 24. Rfd1 e6 25. Nc3 Ke7 26. Rxd8 Rxd8 27. Rxd8 Kxd8 {[%mdl 4096] Endgame KB-KN} 28. Ne2 Bf8 29. Nc1 Bc5+ 30. Kg2 Bd4 31. Nd3 {[%cal Oh3h4]} Bc5 $2 {[%mdl 8192]} 32. Ne1 $2 ({White must play} 32. Nxc5 $18 Ke7 33. Nxb7) 32... Bf8 ({Better is} 32... h4 $15) 33. Nd3 $11 Bg7 {Weighted Error Value: White=0.33/Black=0.10 (very precise)} 1/2-1/2

[Event "Svetozar Gligoric Masters 2022"]
[Site "Belgrade"]
[Date "2022.07.18"]
[Round "2.23"]
[White "Ozer, Omer Faruk"]
[Black "Makaraci, Tunahan"]
[Result "1/2-1/2"]
[ECO "A45"]
[WhiteElo "2317"]
[BlackElo "2130"]
[Annotator "TA"]
[PlyCount "66"]
[EventDate "2022.07.18"]
[EventCountry "SRB"]
[SourceTitle "playchess.com"]
[Source "ChessBase"]
[SourceQuality "1"]
[TimeControl "40/5400+30:900+30"]

{[%evp 9,66,25,26,0,20,1,12,20,51,28,21,12,78,77,95,23,27,32,18,39,196,199,202,158,191,158,210,215,216,212,263,260,259,161,143,154,137,-84,-40,-81,-17,-184,-177,-184,-174,-265,-254,-282,-221,-271,-172,-370,0,0,0,0,0,0,0]} 1. d4 Nf6 2. Bg5 e6 3. e4 h6 4. Bxf6 Qxf6 5. c3 d5 6. Nd2 {[%cal Bb1d2,Bd2e4,Be4g3][%mdl 32] A45: Trompowsky Attack.} c5 7. Ngf3 Nc6 {[%cal Rc5d4]} 8. Bb5 {White wants to play Ne5.} Bd7 {[%cal Rc5d4]} 9. O-O (9. Qe2 $5 {[%cal Re4d5]} a6 10. Bd3 $11) 9... cxd4 10. cxd4 dxe4 (10... Nxd4 $2 11. Bxd7+ Kxd7 12. exd5 (12. Qa4+ Nc6 $16) 12... Nxf3+ 13. Nxf3 $16) (10... a6 $11 {keeps the balance.} 11. Bxc6 Bxc6) 11. Nxe4 $16 {[#]} Qf4 $146 ({Predecessor:} 11... Qg6 12. Nc5 Bxc5 13. dxc5 O-O-O 14. Qa4 Kb8 15. Rad1 a6 16. Bxa6 Ne5 17. Nxe5 Bxa4 18. Nxg6 Bxd1 19. Nxh8 {1-0 (55) Manon Og,R (2122)-Wiwatanadate,P (2024) Chess.com INT 2016}) 12. d5 (12. Re1 $1 $16 {aiming for d5.} a6 13. Ba4) 12... exd5 $1 $11 (12... Qxe4 13. Re1 Qf5 14. dxc6 bxc6 15. Ba4 $14) 13. Qxd5 O-O-O $1 {Strongly threatening ...Be6.} 14. Rac1 f5 $2 (14... Be8 $1 $14 15. Qe5 Qxe5 16. Nxe5 Rd4 17. Bxc6 bxc6) 15. Ng3 $1 $18 ({Much less strong is} 15. Bxc6 $6 Bxc6 16. Qe6+ (16. Rxc6+ bxc6 17. Qxc6+ Kb8 $11) 16... Kb8 17. Rxc6 (17. Ng3 Bxf3 18. gxf3 Qxf3 $15) 17... fxe4 $16) 15... Qd6 16. Bxc6 bxc6 17. Qf7 {And now Rfd1 would win.} Qe7 (17... Qf6 $16 {is a better defense.} 18. Qb3 Bd6) 18. Qc4 {Threatens to win with Rfd1.} Qb4 19. Qc2 Qf4 20. Rfd1 {[%cal Od1d7] Hoping for Rxd7!} Be7 21. Rxd7 Rxd7 {[%cal Bd8d7,Bd7b7,Bb7b2][%mdl 32]} 22. Qxc6+ Kb8 {[#]} 23. Rc3 $2 {Chess con chili.} (23. Ne5 $1 $16 {[%cal Re5d7] is necessary to keep the advantage.} Qxe5 24. Qxd7) 23... Rb7 $17 24. Qe6 Qd6 ({Black should try} 24... Rd8 $17 {[%cal Of4e4] ...Qe4! is the strong threat.} 25. h3 Qd6 26. Qxf5 Bf6) 25. Qxd6+ $2 (25. Qxf5 $11 Rd8 26. b3) 25... Bxd6 $19 26. Nxf5 Rxb2 {( -> ...Rb1+)} 27. g4 (27. Kf1 $142 Re8 28. Rb3+ Rxb3 29. axb3) 27... Bb4 28. Rd3 Rc8 29. Ne5 Rcc2 30. a3 $2 {[#]} (30. Ne3 Rc1+ 31. Kg2) 30... Rxf2 $2 (30... Be1 $1 $19 {[%cal Re1f2]} 31. Rd8+ Kc7 32. Rd7+ Kb6) 31. axb4 $11 {The position is equal.} Rg2+ (31... Rfe2 $5 32. Rd8+ Kc7 33. Rd7+ Kb8 34. Rd8+ Kc7 35. Rd7+ Kb8 36. Rd8+ $11) 32. Kf1 Rgf2+ 33. Kg1 Rg2+ {Weighted Error Value: White=0.45/Black=0.38} (33... Rfe2 $5 34. Rd8+ Kc7 35. Rd7+ Kb8 36. Rd8+ Kc7 37. Rd7+ Kb8 38. Rd8+ $11) 1/2-1/2

[Event "Svetozar Gligoric Masters 2022"]
[Site "Belgrade"]
[Date "2022.07.18"]
[Round "2.24"]
[White "Vaibhav Jayant Raut"]
[Black "Yordanov, Lachezar"]
[Result "1/2-1/2"]
[ECO "E11"]
[WhiteElo "2169"]
[BlackElo "2316"]
[Annotator "TA"]
[PlyCount "36"]
[EventDate "2022.07.18"]
[EventCountry "SRB"]
[SourceTitle "playchess.com"]
[Source "ChessBase"]
[SourceQuality "1"]
[TimeControl "40/5400+30:900+30"]

{[%evp 16,36,11,-10,0,-16,0,-51,2,0,0,8,25,0,0,-48,51,45,31,34,45,44,53]} 1. d4 Nf6 2. c4 e6 3. Nf3 d5 4. g3 Bb4+ 5. Bd2 Be7 6. Bg2 O-O 7. O-O Nbd7 8. Qc2 c6 9. Nc3 dxc4 {E11: Bogo-Indian.} 10. a4 {Against b5} a5 11. e4 (11. Nb1 $11) 11... b6 ({Black should try} 11... e5 $1 $15) 12. Rfd1 $11 Bb7 13. Bf4 h6 {[#]} 14. Nd2 $146 ({Predecessor:} 14. Bf1 Ba6 15. Rac1 b5 16. axb5 cxb5 17. d5 exd5 18. e5 Ne4 19. Nxd5 {1-0 (33) Luo,T (1958)-Boris,P (1812) Tysons 2018}) 14... Ba6 $1 15. Qb1 (15. Nf1 $11) 15... Re8 (15... e5 $15 16. dxe5 Ng4) 16. Qa2 $1 $14 {White is slightly better.} Nf8 17. Nxc4 Ng6 18. Be3 Qc7 {Weighted Error Value: White=0.19 (very precise) /Black=0.26 (precise)} 1/2-1/2

[Event "Svetozar Gligoric Masters 2022"]
[Site "Belgrade"]
[Date "2022.07.19"]
[Round "3.1"]
[White "Damjanovic, Vuk"]
[Black "Predke, Alexandr"]
[Result "0-1"]
[ECO "D38"]
[WhiteElo "2393"]
[BlackElo "2688"]
[Annotator "TA"]
[PlyCount "102"]
[EventDate "2022.07.18"]
[EventCountry "SRB"]
[SourceTitle "playchess.com"]
[Source "ChessBase"]
[SourceQuality "1"]
[TimeControl "40/5400+30:900+30"]

{[%evp 15,102,22,20,18,6,10,67,0,0,0,0,0,0,0,0,0,0,0,0,0,0,0,0,0,0,0,0,0,0,0,0,0,0,0,0,-6,-6,-9,-6,-28,-4,-4,-5,-16,0,0,0,0,0,0,0,0,-11,-91,-54,-164,-176,-329,-331,-349,-331,-315,-281,-702,-600,-892,-883,-2869,-9677,-2372,-1030,-12837,-12837,-12840,-12840,-12841,-12841,-12843,-12843,-12847,-12847,-12848,-12848,-12849,-12849,-12850,-12850,-12850,-27999]} 1. d4 Nf6 2. c4 e6 3. Nf3 d5 4. Nc3 Bb4 5. Bg5 O-O 6. e3 h6 7. Bxf6 Qxf6 8. Rc1 {[%cal Ba1c1,Bc1c3,Bc3d3,Bd3d5][%mdl 32]} Nc6 9. a3 {D38: Queen's Gambit Declined: Ragozin Defence (4 Nf3 Bb4).} Bxc3+ 10. Rxc3 Rd8 (10... dxc4 $11 11. Bxc4 e5) 11. Qc2 (11. cxd5 $14 exd5 12. h3) 11... e5 $11 12. dxe5 Nxe5 13. Nxe5 Qxe5 14. cxd5 $1 {[#]} Qxd5 $146 ({Predecessor:} 14... Bf5 15. Bd3 Bxd3 16. Rxd3 Rxd5 17. Rxd5 Qxd5 18. O-O c6 19. Rd1 Qa5 20. Qd2 Qb6 {0-1 (45) Lukey,S (2141)-Croad,N (2289) Christchurch 2022}) 15. Rd3 Bf5 16. Rxd5 Bxc2 17. Rd2 Bb3 18. Bd3 Rd6 19. Bc2 Bxc2 20. Rxc2 {[%mdl 4096] Endgame KRR-KRR} Rad8 {And now ...Rd1+ would win.} 21. Ke2 {Against Rd1} c6 22. Rb1 Rd3 23. a4 R8d5 24. b3 Kf8 25. g4 g5 26. Kf3 Ke7 27. Ke4 Ke6 28. h4 gxh4 29. f4 Ke7 30. Rh2 Rc3 31. Rxh4 Rdd3 32. Re1 Rd6 33. f5 $1 Rxb3 {...Ra3 is the strong threat.} 34. Kf4 (34. Reh1 $11) 34... c5 $17 {[%cal Bc6c5,Bc5c4,Bc4c3][%mdl 32] Strongly threatening ...Ra3. Black converts the advantage convincingly.} 35. Reh1 (35. e4 $1 $15) 35... c4 $19 36. Rxh6 $2 (36. Rc1 Rc6 37. Ke4) 36... Rxh6 37. Rxh6 {KR-KR} c3 38. Rh1 Rb4+ 39. e4 $2 (39. Ke5 Rxa4 40. f6+ Kd7 41. e4) 39... Rxa4 {Black is clearly winning.} 40. Rc1 Rc4 {Threatens to win with ...b5.} 41. Ke5 b5 42. f6+ Kd7 (42... Kf8 $142 43. Kf4 b4) 43. Kd5 Rc8 (43... c2 44. e5 Rc3 45. g5 $17) 44. g5 {[#]} b4 $1 ({Inferior is} 44... c2 45. e5 Ke8 46. g6 fxg6 47. e6 Rd8+ 48. Ke5 $11) 45. g6 {[#]} b3 $1 {( -> ...b2)} 46. gxf7 b2 47. Rxc3 b1=Q 48. Rxc8 Qb7+ 49. Ke5 Qxc8 50. Kf5 Qf8 51. e5 Qxf7 {Weighted Error Value: White=0.54/Black=0.14 (very precise)} 0-1

[Event "Svetozar Gligoric Masters 2022"]
[Site "Belgrade"]
[Date "2022.07.19"]
[Round "3.2"]
[White "Erdogmus, Yagiz Kaan"]
[Black "Petrov, Nikita"]
[Result "1/2-1/2"]
[ECO "E00"]
[WhiteElo "2373"]
[BlackElo "2558"]
[Annotator "TA"]
[PlyCount "94"]
[EventDate "2022.07.18"]
[EventCountry "SRB"]
[SourceTitle "playchess.com"]
[Source "ChessBase"]
[SourceQuality "1"]
[TimeControl "40/5400+30:900+30"]

{[%evp 13,94,4,9,20,20,16,0,10,-12,-35,-27,-29,-8,-8,-8,-7,0,-81,-76,-68,-81,-79,-83,-62,-62,-100,-88,-138,-83,-70,-49,-40,-27,-22,-29,-25,-26,-29,-26,-20,-14,-25,-4,-4,-4,-33,-33,-33,-15,-39,-43,-46,-27,-18,0,0,0,-7,0,-9,-10,-30,-31,-30,-35,-48,-29,-33,-29,-37,-22,-30,-12,-12,-12,-12,-12,-12,-8,-6,0,-13,0]} 1. d4 {Winants,L} Nf6 2. c4 e6 3. g3 Bb4+ 4. Nd2 c5 5. a3 Bxd2+ 6. Qxd2 cxd4 7. Nf3 Nc6 {7...d5 is the modern continuation.} 8. Nxd4 {E00: Catalan Bogo-Indian (3 g3 Bb4+).} Na5 9. Qb4 {Black should prevent Nb5.} d5 10. Nb5 {[#] Hoping for Nd6+.} Nc6 11. Qa4 ({Much worse is} 11. Nd6+ Kd7 12. Qc5 (12. Nxb7 $2 Nxb4 13. Nxd8 Nc2+ 14. Kd1 Nxa1 $19) 12... b6 $17) 11... O-O 12. Bg2 {[#]} Bd7 $146 {Black wants to play ...Na5.} (12... a6 $5 {[%cal Ra6b5]}) ({Predecessor:} 12... d4 13. c5 e5 14. Nd6 Qc7 15. O-O Bd7 16. b4 Ne7 17. Qc2 Bc6 18. f4 Bxg2 19. Kxg2 {0-1 (60) Verat,L (2255)-Winants,L (2480) France 1998 CBM 071 [Winants,L]}) 13. cxd5 Nxd5 14. O-O Nce7 {[#] Threatens to win with ...Qb6.} 15. Qb3 (15. Qc4 $1 $11) 15... Qb6 $36 {[%mdl 2048] White is under strong pressure.} 16. a4 a6 $1 {[%cal Ba7a6,Ba6b5][%mdl 32]} 17. e4 axb5 18. exd5 Nxd5 19. Bxd5 exd5 20. Qxd5 (20. a5 $142 Qf6 21. Qxd5) 20... Be6 (20... Bc6 $142 21. Be3 Qa5) 21. Qe4 bxa4 (21... Rfe8 $5 {[%cal Re6h3]} 22. Re1 Qa6 $17) 22. Rxa4 Bd5 23. Qd4 Qe6 {And now ...Rxa4 would win.} 24. Rxa8 Rxa8 25. Bd2 Bc6 26. f3 f6 (26... Qe2 {is more complex.} 27. Bc3 f6 28. Qg4 Kh8) 27. Bc3 (27. Qd3 {looks sharper.} Qe7 28. Bc3 Qc5+ 29. Rf2) 27... h6 (27... Qe2 {feels hotter.} 28. Qg4 Kh8 29. Qf4 Rd8) 28. Qd3 Qf7 29. Qf5 Rd8 30. Re1 Kh8 (30... Qc4 {seems wilder.} 31. Kf2 Rd3 32. b3 Qd5) 31. Kf2 Rd5 32. Qf4 Qh5 33. g4 {Prevents Rf5.} Qf7 (33... Qg6 {is interesting.} 34. Qb8+ Kh7 35. Qf4 Rd3) 34. h4 Kg8 35. Re3 Qd7 36. Kg3 h5 37. Qb8+ Kh7 {...hxg4 is the strong threat.} 38. Qf4 hxg4 39. fxg4 Rd1 {White must now prevent ...Rg1+.} 40. Qf5+ Qxf5 41. gxf5 $15 {[%mdl 4096] Endgame KRB-KRB} Rg1+ 42. Kf4 Rf1+ 43. Kg4 {The position is equal.} Kg8 44. Re1 Rf2 45. Re7 Rg2+ 46. Kf4 Rf2+ 47. Kg4 Rg2+ {Weighted Error Value: White=0.11 (very precise) /Black=0.06 (flawless)} 1/2-1/2

[Event "Svetozar Gligoric Masters 2022"]
[Site "Belgrade"]
[Date "2022.07.19"]
[Round "3.3"]
[White "Makarian, Rudik"]
[Black "Kushagra Mohan"]
[Result "0-1"]
[ECO "D80"]
[WhiteElo "2533"]
[BlackElo "2359"]
[Annotator "TA"]
[PlyCount "80"]
[EventDate "2022.07.18"]
[EventCountry "SRB"]
[SourceTitle "playchess.com"]
[Source "ChessBase"]
[SourceQuality "1"]
[TimeControl "40/5400+30:900+30"]

{[%evp 9,80,0,0,-21,33,35,37,41,41,0,0,0,0,0,0,-31,-39,-31,-31,-43,0,-20,-25,-30,-25,-38,-46,-72,-87,-81,-78,-118,-121,-126,-113,-143,-103,-89,-25,-144,-160,-148,-152,-141,-166,-268,-270,-254,-229,-235,-239,-238,-239,-309,-296,-309,-305,-437,-420,-437,-432,-450,-437,-533,-508,-556,-557,-555,-551,-1251,-1218,-883,-754]} 1. d4 Nf6 2. c4 g6 3. Nc3 d5 4. h4 c5 5. cxd5 Nxd5 6. Na4 {D80: Grünfeld: Unusual White 4th moves and 4 Bg5.} cxd4 (6... Nc6 $11 7. Nxc5 e5) 7. Qxd4 $14 Nf6 ({Not} 7... Qa5+ 8. Bd2 Nc6 9. Qxh8 $16) 8. Qxd8+ {White is slightly better.} Kxd8 {[#]} 9. b3 $146 (9. Bf4 {is more complex.} Nc6 10. Nf3 Bg7 11. e3) ({Predecessor:} 9. Nf3 Nc6 10. g3 Nb4 11. Nd4 e5 12. Bg5 Be7 13. a3 exd4 14. axb4 Bxb4+ 15. Kd1 {0-1 (57) Van Foreest,J (2702)-Ragger,M (2643) Chartres 2022}) 9... e5 10. Bb2 ({But not} 10. Bg5 Bb4+ 11. Kd1 Ke7 $17) 10... Bb4+ 11. Nc3 $1 Nc6 12. a3 Bxc3+ 13. Bxc3 Ne4 14. Bb2 {[%cal Og2g4]} Be6 15. b4 Ke7 $36 {[%mdl 2048] Black fights for an advantage.} 16. Nf3 f6 17. e3 Rhd8 18. Be2 a5 19. b5 Nb8 {[%cal Bc6b8,Bb8d7,Bd7c5,Bc5d3][%mdl 32] Black is much more active. The white rooks are badly placed.} 20. O-O Nd7 21. a4 Ndc5 22. b6 Nd3 {Pair of Knights!} 23. Ba3+ Kf7 ({Black should try} 23... Nb4 $17 {Strongly threatening ...Nc3.} 24. Rfc1 Rac8) 24. Bxd3 {Black keeps a firm grip on the game.} (24. Nd4 $1 $11 {was the only way to keep the balance.} exd4 25. Bxd3) 24... Rxd3 $17 25. Rfc1 Nc3 26. Kh2 {[#] And now Ne1 would win.} Nxa4 27. Bc5 (27. Rc7+ {keeps fighting.} Rd7 28. Rxd7+ Bxd7 29. Nd2) 27... Bd7 $19 28. e4 Rc8 29. Be3 {Threatens to win with Rxc8.} Rxc1 30. Rxc1 Bc6 31. Ra1 Nb2 32. Rxa5 Nc4 ({Don't go for} 32... Bxe4 $2 33. Nd2 Bd5 34. Rc5 $19) 33. Ra8 (33. Ra2 {was called for.}) 33... Nxe3 34. fxe3 Bxe4 {[%mdl 4096] Endgame KRB-KRN. Black is clearly winning.} 35. Rh8 h5 36. Rc8 Rxe3 37. Nd2 Bd5 {[#] ...Re2 is the strong threat.} 38. Rd8 Ke6 {White must now prevent ...Re2.} 39. Re8+ Kd7 40. Rf8 Re2 {[%csl LRd2,LRg2] Weighted Error Value: White=0.39/Black=0.09 (flawless)} 0-1

[Event "Svetozar Gligoric Masters 2022"]
[Site "Belgrade"]
[Date "2022.07.19"]
[Round "3.4"]
[White "Spasic, Petar"]
[Black "Pranav Vijay"]
[Result "0-1"]
[ECO "A27"]
[WhiteElo "2336"]
[BlackElo "2265"]
[Annotator "TA"]
[PlyCount "76"]
[EventDate "2022.07.18"]
[EventCountry "SRB"]
[SourceTitle "playchess.com"]
[Source "ChessBase"]
[SourceQuality "1"]
[TimeControl "40/5400+30:900+30"]

{[%evp 10,76,-25,-22,21,-10,-25,-41,-28,-25,-35,-67,-21,-133,-125,-118,-157,-159,-168,-156,-125,-114,-78,-165,-146,-137,-108,-110,-122,-109,-110,-110,-110,-105,-108,-106,-115,-271,-270,-266,-263,-253,-256,-268,-266,-274,-267,-273,-254,-262,-240,-347,-342,-315,-335,-329,-330,-386,-377,-375,-267,-746,-735,-896,-891,-854,-832,-1242,-1152]} 1. c4 e5 2. Nc3 Nc6 3. Nf3 g6 4. d4 exd4 5. Nd5 Bg7 6. Bg5 f6 {A27: English Opening: Three Knights Variation.} (6... Nce7 {with more complications.} 7. Nxd4 h6 8. Bh4 c6) 7. Bh4 (7. Bf4 $5 {[%cal Rf4c7]} d6 8. Nxd4 Nxd4 9. Qxd4 $11) 7... Nh6 8. Nxd4 Nxd4 {Black is slightly better.} 9. Qxd4 O-O {[#]} 10. e4 $146 {Inhibits Nf5.} ({Predecessor:} 10. g4 c6 11. Nc3 Qa5 12. c5 b5 13. h3 f5 14. Qd3 b4 15. Nd1 Qxc5 16. e3 {0-1 (36) Markowski,P (2119)-Kania,P (2242) Polanica Zdroj 2008}) 10... d6 (10... c6 $15 11. Nc3 Qe8) 11. f4 (11. Qd2 $11 {keeps the balance.}) 11... g5 $17 12. Bg3 c6 13. Ne3 f5 14. Qd2 fxe4 15. fxg5 Qxg5 16. O-O-O (16. Bxd6 $17 {was the only defense.} Rf7 17. O-O-O) 16... Rd8 17. Kb1 Nf7 {[%cal Od6d5] Black is more active.} 18. Be2 Be6 {aiming for ...d5.} 19. Rhf1 d5 20. cxd5 cxd5 21. Nf5 Qxd2 22. Rxd2 d4 23. Bg4 {[#] White does not recover from this.} (23. Bh5 $17 {keeps fighting.} e3 24. Rdd1) 23... e3 $1 $19 24. Ne7+ {[#]} Kh8 $1 ({Stronger than} 24... Kf8 25. Bxe6 Kxe7 26. Bxf7 $15) 25. Bxe6 {Black must now prevent Re2.} Ng5 26. Nf5 {[%cal Of5g7]} Nxe6 ({Not} 26... exd2 27. Nxg7 d1=Q+ 28. Rxd1 Kxg7 29. Be5+ Kg6 30. Bc4 $15) 27. Re2 Rd5 28. Bh4 Rf8 29. g4 Re5 30. Bg3 (30. Be7 {might work better.} Rf7 31. Bd6) 30... Re4 31. h3 Be5 32. Bxe5+ Rxe5 33. Rf3 Ng5 34. Rg3 Rd8 {Strongly threatening ...d3.} 35. Re1 $2 (35. Nxd4 Rxd4 36. Rexe3 Rxe3 37. Rxe3) 35... Ne4 {Black is clearly winning.} 36. Rg2 Nd2+ 37. Kc1 Nf3 38. Rf1 {[#]} d3 $1 {Weighted Error Value: White=0.55/Black=0.10 (very precise)} 0-1